[Event "*** Titled Tuesday Blitz"]
[Site "Chess.com"]
[Date "2021.03.02"]
[Round "5"]
[White "JQuiroga18"]
[Black "vinniethepooh"]
[Result "0-1"]
[WhiteElo "2435"]
[BlackElo "2702"]
[TimeControl "180+1"]
[EndTime "10:54:33 PST"]
[Termination "vinniethepooh won by resignation"]

1. e4 {[%clk 0:03:00.9]} 1... c5 {[%clk 0:03:00.1]} 2. Nf3 {[%clk 0:03:00.7]}
2... d6 {[%clk 0:03:00.3]} 3. d4 {[%clk 0:03:00.2]} 3... cxd4 {[%clk 0:03:01.2]}
4. Nxd4 {[%clk 0:03:00.4]} 4... Nf6 {[%clk 0:03:01.8]} 5. Nc3 {[%clk 0:03:00.7]}
5... a6 {[%clk 0:03:02.4]} 6. g3 {[%clk 0:03:00.8]} 6... g6 {[%clk 0:02:59.3]}
7. Bg2 {[%clk 0:03:00.4]} 7... Bg7 {[%clk 0:02:59.9]} 8. O-O {[%clk 0:03:00.9]}
8... O-O {[%clk 0:03:00.5]} 9. h3 {[%clk 0:03:00.8]} 9... Bd7 {[%clk 0:03:00.5]}
10. Be3 {[%clk 0:02:52.2]} 10... Nc6 {[%clk 0:03:00.6]} 11. Nd5 {[%clk
0:02:48.3]} 11... Rc8 {[%clk 0:02:50.5]} 12. Rc1 {[%clk 0:02:38.7]} 12... Re8
{[%clk 0:02:24.9]} 13. c4 {[%clk 0:02:36.4]} 13... e6 {[%clk 0:02:15.5]} 14.
Nxf6+ {[%clk 0:02:30.7]} 14... Qxf6 {[%clk 0:02:16]} 15. Nxc6 {[%clk 0:02:28.1]}
15... Bxc6 {[%clk 0:02:16.5]} 16. b3 {[%clk 0:02:27.5]} 16... Red8 {[%clk
0:01:53.7]} 17. Qd2 {[%clk 0:02:26]} 17... Rd7 {[%clk 0:01:46.3]} 18. Rc2 {[%clk
0:02:09.2]} 18... Qe7 {[%clk 0:01:29.9]} 19. Rd1 {[%clk 0:02:05.4]} 19... f5
{[%clk 0:01:22]} 20. exf5 {[%clk 0:01:46.3]} 20... gxf5 {[%clk 0:01:22.9]} 21.
Bg5 {[%clk 0:01:42.1]} 21... Qf7 {[%clk 0:01:21]} 22. Bh6 {[%clk 0:01:36.1]}
22... Bf6 {[%clk 0:01:12.9]} 23. Bg5 {[%clk 0:01:35.5]} 23... Bh8 {[%clk
0:01:01.9]} 24. Bh6 {[%clk 0:01:21.7]} 24... Qg6 {[%clk 0:01:01.9]} 25. Qg5
{[%clk 0:01:18.4]} 25... Bf6 {[%clk 0:01:00.5]} 26. Qe3 {[%clk 0:01:04.8]} 26...
Bxg2 {[%clk 0:00:47.9]} 27. Kxg2 {[%clk 0:01:04.1]} 27... e5 {[%clk 0:00:35.4]}
28. Qd2 {[%clk 0:00:19.5]} 28... f4 {[%clk 0:00:34.3]} 29. Bxf4 {[%clk
0:00:16.8]} 29... exf4 {[%clk 0:00:33.9]} 30. Rc3 {[%clk 0:00:16.9]} 30... Bxc3
{[%clk 0:00:33]} 31. Qd5+ {[%clk 0:00:16.1]} 0-1

[Event "*** Titled Tuesday Blitz"]
[Site "Chess.com"]
[Date "2021.03.02"]
[Round "5"]
[White "QuintilianoR"]
[Black "federicosellitti"]
[Result "0-1"]
[WhiteElo "2699"]
[BlackElo "2538"]
[TimeControl "180+1"]
[EndTime "10:54:35 PST"]
[Termination "federicosellitti won by resignation"]

1. d4 {[%clk 0:03:00.9]} 1... d5 {[%clk 0:02:59.8]} 2. c4 {[%clk 0:03:01.1]}
2... Nc6 {[%clk 0:03:00.1]} 3. Nf3 {[%clk 0:02:59.9]} 3... Bg4 {[%clk
0:02:59.9]} 4. cxd5 {[%clk 0:02:59.9]} 4... Qxd5 {[%clk 0:02:59.6]} 5. Nc3
{[%clk 0:02:59]} 5... Qh5 {[%clk 0:02:56.7]} 6. e4 {[%clk 0:02:41.4]} 6... Bxf3
{[%clk 0:02:54.5]} 7. gxf3 {[%clk 0:02:41.2]} 7... O-O-O {[%clk 0:02:53.9]} 8.
d5 {[%clk 0:02:19]} 8... e6 {[%clk 0:02:54.2]} 9. Bd2 {[%clk 0:01:59.9]} 9...
exd5 {[%clk 0:02:47.6]} 10. Nxd5 {[%clk 0:01:59.1]} 10... Nf6 {[%clk 0:02:47.5]}
11. Nxf6 {[%clk 0:01:53.1]} 11... gxf6 {[%clk 0:02:48.4]} 12. f4 {[%clk
0:01:32]} 12... Qc5 {[%clk 0:02:20.3]} 13. Rc1 {[%clk 0:01:02]} 13... Qd4 {[%clk
0:02:20.3]} 14. Qc2 {[%clk 0:00:58.9]} 14... Bb4 {[%clk 0:02:06]} 15. Bh3+
{[%clk 0:00:28.5]} 15... Kb8 {[%clk 0:02:05.6]} 16. Bxb4 {[%clk 0:00:28.6]}
16... Nxb4 {[%clk 0:01:37.6]} 17. Qxc7+ {[%clk 0:00:26.7]} 17... Ka8 {[%clk
0:01:38.2]} 18. O-O {[%clk 0:00:26.8]} 18... Rhg8+ {[%clk 0:01:33.9]} 19. Kh1
{[%clk 0:00:25]} 19... Nd3 {[%clk 0:01:28.1]} 20. Rc2 {[%clk 0:00:15.5]} 20...
Qxe4+ {[%clk 0:00:38.7]} 21. f3 {[%clk 0:00:15.3]} 21... Qxf4 {[%clk 0:00:29.6]}
22. Qxf4 {[%clk 0:00:13.6]} 22... Nxf4 {[%clk 0:00:30.5]} 23. Bf5 {[%clk
0:00:14.3]} 23... Rg5 {[%clk 0:00:26]} 24. Rc4 {[%clk 0:00:14.9]} 24... Rxf5
{[%clk 0:00:25.2]} 0-1

[Event "*** Titled Tuesday Blitz"]
[Site "Chess.com"]
[Date "2021.03.02"]
[Round "5"]
[White "DrVelja"]
[Black "As0nchess"]
[Result "0-1"]
[WhiteElo "2828"]
[BlackElo "2622"]
[TimeControl "180+1"]
[EndTime "10:54:37 PST"]
[Termination "As0nchess won on time"]

1. e4 {[%clk 0:03:00.9]} 1... c5 {[%clk 0:02:59.1]} 2. Nf3 {[%clk 0:03:00.8]}
2... d6 {[%clk 0:02:59.1]} 3. Bb5+ {[%clk 0:02:56.6]} 3... Nc6 {[%clk
0:02:58.8]} 4. O-O {[%clk 0:02:52.7]} 4... Bd7 {[%clk 0:02:58.9]} 5. Re1 {[%clk
0:02:52.9]} 5... Nf6 {[%clk 0:02:59.2]} 6. c3 {[%clk 0:02:49.6]} 6... a6 {[%clk
0:02:58.9]} 7. Bf1 {[%clk 0:02:50]} 7... Bg4 {[%clk 0:02:58.6]} 8. h3 {[%clk
0:02:50.5]} 8... Bxf3 {[%clk 0:02:58.4]} 9. Qxf3 {[%clk 0:02:51.4]} 9... e6
{[%clk 0:02:58.6]} 10. d3 {[%clk 0:02:48.8]} 10... Be7 {[%clk 0:02:58.7]} 11.
Nd2 {[%clk 0:02:48.6]} 11... O-O {[%clk 0:02:58.1]} 12. Qd1 {[%clk 0:02:46.9]}
12... d5 {[%clk 0:02:57.8]} 13. e5 {[%clk 0:02:42.5]} 13... Nd7 {[%clk
0:02:57.8]} 14. Nf3 {[%clk 0:02:43.4]} 14... b5 {[%clk 0:02:58.2]} 15. g3 {[%clk
0:02:39.8]} 15... a5 {[%clk 0:02:56.5]} 16. a4 {[%clk 0:02:32.4]} 16... b4
{[%clk 0:02:56.3]} 17. Bg2 {[%clk 0:02:25]} 17... Rb8 {[%clk 0:02:55.1]} 18. h4
{[%clk 0:02:24.8]} 18... Qc7 {[%clk 0:02:53.3]} 19. Qe2 {[%clk 0:02:21.6]} 19...
bxc3 {[%clk 0:02:47.9]} 20. bxc3 {[%clk 0:02:22.5]} 20... Rb3 {[%clk 0:02:48.2]}
21. Bd2 {[%clk 0:01:56.8]} 21... Rb2 {[%clk 0:02:48]} 22. Qe3 {[%clk 0:01:16.1]}
22... Rfb8 {[%clk 0:02:15.5]} 23. Qf4 {[%clk 0:00:58.9]} 23... Nf8 {[%clk
0:01:36.1]} 24. h5 {[%clk 0:00:57.9]} 24... h6 {[%clk 0:01:35.3]} 25. g4 {[%clk
0:00:54.9]} 25... Nh7 {[%clk 0:01:34.8]} 26. Qg3 {[%clk 0:00:47.3]} 26... Ng5
{[%clk 0:01:28.4]} 27. Nxg5 {[%clk 0:00:45.3]} 27... Rxd2 {[%clk 0:01:27.8]} 28.
Nh3 {[%clk 0:00:43]} 28... Rb3 {[%clk 0:01:27.1]} 29. g5 {[%clk 0:00:33.3]}
29... hxg5 {[%clk 0:01:22.9]} 30. Nxg5 {[%clk 0:00:33.9]} 30... Rxc3 {[%clk
0:01:22.3]} 31. h6 {[%clk 0:00:26.5]} 31... Bf8 {[%clk 0:01:11.7]} 32. Rad1
{[%clk 0:00:17.5]} 32... Rcxd3 {[%clk 0:01:07.9]} 33. h7+ {[%clk 0:00:16.2]}
33... Kh8 {[%clk 0:01:07.8]} 34. Qf4 {[%clk 0:00:13.9]} 34... Rxd1 {[%clk
0:01:02.5]} 35. Nxf7+ {[%clk 0:00:14.3]} 35... Kxh7 {[%clk 0:01:02.5]} 36. Qh4+
{[%clk 0:00:07.5]} 36... Kg8 {[%clk 0:01:01.5]} 0-1

[Event "*** Titled Tuesday Blitz"]
[Site "Chess.com"]
[Date "2021.03.02"]
[Round "5"]
[White "Sergey85Rodchenkov"]
[Black "bylavochka"]
[Result "1-0"]
[WhiteElo "2473"]
[BlackElo "2189"]
[TimeControl "180+1"]
[EndTime "10:54:37 PST"]
[Termination "Sergey85Rodchenkov won on time"]

1. Nf3 {[%clk 0:03:00.9]} 1... Nf6 {[%clk 0:02:54.4]} 2. c4 {[%clk 0:03:00.5]}
2... g6 {[%clk 0:02:54.3]} 3. b4 {[%clk 0:02:59.7]} 3... Bg7 {[%clk 0:02:53.8]}
4. Bb2 {[%clk 0:02:59.9]} 4... d6 {[%clk 0:02:52.8]} 5. d3 {[%clk 0:02:59.7]}
5... Nbd7 {[%clk 0:02:50.2]} 6. g3 {[%clk 0:02:59.2]} 6... a5 {[%clk 0:02:50]}
7. b5 {[%clk 0:02:58.9]} 7... c6 {[%clk 0:02:44.1]} 8. a4 {[%clk 0:02:57.8]}
8... O-O {[%clk 0:02:36.1]} 9. Bg2 {[%clk 0:02:56.9]} 9... cxb5 {[%clk
0:02:09.3]} 10. axb5 {[%clk 0:02:56.2]} 10... Nc5 {[%clk 0:02:04.7]} 11. O-O
{[%clk 0:02:55.6]} 11... Bg4 {[%clk 0:02:03.8]} 12. h3 {[%clk 0:02:54.5]} 12...
Bxf3 {[%clk 0:01:52.2]} 13. Bxf3 {[%clk 0:02:53.8]} 13... Qc7 {[%clk 0:01:46.1]}
14. Nc3 {[%clk 0:02:50.5]} 14... Rab8 {[%clk 0:01:40.3]} 15. Rc1 {[%clk
0:02:44.3]} 15... b6 {[%clk 0:01:40.2]} 16. d4 {[%clk 0:02:34.5]} 16... Ncd7
{[%clk 0:01:28.7]} 17. Qd3 {[%clk 0:02:22.6]} 17... e5 {[%clk 0:01:21.5]} 18.
Nd5 {[%clk 0:02:19.1]} 18... Nxd5 {[%clk 0:01:20.1]} 19. cxd5 {[%clk 0:02:18.9]}
19... Qb7 {[%clk 0:01:03.4]} 20. Rc6 {[%clk 0:02:17.2]} 20... exd4 {[%clk
0:00:57]} 21. Bxd4 {[%clk 0:02:16.5]} 21... Bxd4 {[%clk 0:00:33]} 22. Qxd4
{[%clk 0:02:16.1]} 22... Ne5 {[%clk 0:00:33.9]} 23. Rxd6 {[%clk 0:01:59.8]}
23... Nxf3+ {[%clk 0:00:10.4]} 24. exf3 {[%clk 0:01:59.6]} 24... Rfd8 {[%clk
0:00:11.3]} 25. Rc6 {[%clk 0:01:26.5]} 25... Rbc8 {[%clk 0:00:05.9]} 26. Rd1
{[%clk 0:01:22]} 26... Rxc6 {[%clk 0:00:02.8]} 27. bxc6 {[%clk 0:01:21.3]} 27...
Qc7 {[%clk 0:00:03.7]} 28. h4 {[%clk 0:01:15]} 28... Rd6 {[%clk 0:00:01.9]} 29.
h5 {[%clk 0:01:12.4]} 29... b5 {[%clk 0:00:01.6]} 30. h6 {[%clk 0:01:12]} 30...
f6 {[%clk 0:00:02.2]} 31. Qc5 {[%clk 0:01:04.2]} 31... b4 {[%clk 0:00:02.3]} 32.
Re1 {[%clk 0:01:00.1]} 32... Kf7 {[%clk 0:00:02.5]} 33. Ra1 {[%clk 0:00:54.5]}
33... Qd8 {[%clk 0:00:02.1]} 34. Rxa5 {[%clk 0:00:53.1]} 1-0

[Event "*** Titled Tuesday Blitz"]
[Site "Chess.com"]
[Date "2021.03.02"]
[Round "5"]
[White "dhaessel"]
[Black "UmarovSabir"]
[Result "0-1"]
[WhiteElo "1954"]
[BlackElo "2313"]
[TimeControl "180+1"]
[EndTime "10:54:38 PST"]
[Termination "UmarovSabir won on time"]

1. d4 {[%clk 0:03:00.9]} 1... g6 {[%clk 0:02:58.1]} 2. c4 {[%clk 0:02:58]} 2...
Bg7 {[%clk 0:02:57.5]} 3. e4 {[%clk 0:02:56.9]} 3... c6 {[%clk 0:02:57.1]} 4.
Nc3 {[%clk 0:02:51.9]} 4... d6 {[%clk 0:02:56.8]} 5. Be2 {[%clk 0:02:43.9]} 5...
Qb6 {[%clk 0:02:55.9]} 6. Nf3 {[%clk 0:02:39.1]} 6... Bg4 {[%clk 0:02:54.7]} 7.
d5 {[%clk 0:02:03.5]} 7... Bxc3+ {[%clk 0:02:51.5]} 8. bxc3 {[%clk 0:02:03]}
8... Nf6 {[%clk 0:02:51.9]} 9. Qc2 {[%clk 0:01:55.7]} 9... O-O {[%clk
0:02:33.6]} 10. O-O {[%clk 0:01:52.1]} 10... Nbd7 {[%clk 0:02:31.2]} 11. Be3
{[%clk 0:01:49.7]} 11... Qc7 {[%clk 0:02:25.3]} 12. h3 {[%clk 0:01:35.5]} 12...
Bxf3 {[%clk 0:02:24.6]} 13. Bxf3 {[%clk 0:01:36.4]} 13... cxd5 {[%clk 0:02:16]}
14. cxd5 {[%clk 0:01:34.3]} 14... Rfc8 {[%clk 0:02:14.9]} 15. Bd4 {[%clk
0:01:29.9]} 15... Ne5 {[%clk 0:01:52.6]} 16. Be2 {[%clk 0:01:28.7]} 16... Nc4
{[%clk 0:01:48.2]} 17. a4 {[%clk 0:01:22.5]} 17... b6 {[%clk 0:01:19.7]} 18. f4
{[%clk 0:01:14.4]} 18... Nd7 {[%clk 0:01:15.7]} 19. Rf3 {[%clk 0:00:43.3]} 19...
e5 {[%clk 0:00:58.5]} 20. dxe6 {[%clk 0:00:39.7]} 20... fxe6 {[%clk 0:00:59.4]}
21. f5 {[%clk 0:00:11.3]} 21... gxf5 {[%clk 0:00:46.8]} 22. exf5 {[%clk
0:00:10.5]} 22... e5 {[%clk 0:00:46.4]} 23. Bf2 {[%clk 0:00:08]} 23... Nf6
{[%clk 0:00:44.4]} 24. Rg3+ {[%clk 0:00:07.1]} 24... Kh8 {[%clk 0:00:43.9]} 25.
Qc1 {[%clk 0:00:03.9]} 25... Ne4 {[%clk 0:00:32.8]} 0-1

[Event "*** Titled Tuesday Blitz"]
[Site "Chess.com"]
[Date "2021.03.02"]
[Round "5"]
[White "Sven_Tica"]
[Black "Bodnar_Mykola"]
[Result "1-0"]
[WhiteElo "2666"]
[BlackElo "2489"]
[TimeControl "180+1"]
[EndTime "10:54:39 PST"]
[Termination "Sven_Tica won by resignation"]

1. d4 {[%clk 0:03:00.9]} 1... Nf6 {[%clk 0:02:57.4]} 2. c4 {[%clk 0:03:00.5]}
2... g6 {[%clk 0:02:49.3]} 3. Nc3 {[%clk 0:03:00.2]} 3... Bg7 {[%clk 0:02:49.6]}
4. Bf4 {[%clk 0:02:57.1]} 4... c5 {[%clk 0:02:48]} 5. d5 {[%clk 0:02:53.5]} 5...
O-O {[%clk 0:02:38.7]} 6. e3 {[%clk 0:02:44.7]} 6... d6 {[%clk 0:02:18.7]} 7.
Nf3 {[%clk 0:02:41]} 7... a6 {[%clk 0:02:16.3]} 8. Be2 {[%clk 0:02:33]} 8... b5
{[%clk 0:02:15.9]} 9. cxb5 {[%clk 0:02:32.9]} 9... axb5 {[%clk 0:02:16.8]} 10.
Bxb5 {[%clk 0:02:24.7]} 10... Ne4 {[%clk 0:01:55.5]} 11. O-O {[%clk 0:02:19.9]}
11... Bxc3 {[%clk 0:01:52.7]} 12. bxc3 {[%clk 0:02:19.6]} 12... Nxc3 {[%clk
0:01:53.6]} 13. Qb3 {[%clk 0:02:19.9]} 13... Nxb5 {[%clk 0:01:54.5]} 14. Qxb5
{[%clk 0:02:20.5]} 14... Ba6 {[%clk 0:01:55]} 15. Qb2 {[%clk 0:02:21.1]} 15...
Bxf1 {[%clk 0:01:55.6]} 16. Bh6 {[%clk 0:02:21.8]} 16... f6 {[%clk 0:01:44.4]}
17. Bxf8 {[%clk 0:02:12.6]} 17... Bc4 {[%clk 0:01:41.9]} 18. Qb7 {[%clk
0:02:02]} 18... Nd7 {[%clk 0:01:35.4]} 19. Bxe7 {[%clk 0:02:01.8]} 19... Rb8
{[%clk 0:01:18.7]} 20. Bxd8 {[%clk 0:02:01.6]} 20... Rxb7 {[%clk 0:01:19.1]} 21.
e4 {[%clk 0:02:01.9]} 21... Bd3 {[%clk 0:01:08.8]} 22. Nd2 {[%clk 0:01:51.5]}
22... c4 {[%clk 0:01:09.1]} 23. Ba5 {[%clk 0:01:49]} 23... Nc5 {[%clk
0:01:05.6]} 24. f3 {[%clk 0:01:48.8]} 24... Na4 {[%clk 0:01:02.5]} 25. Rc1
{[%clk 0:01:45.4]} 25... Rb2 {[%clk 0:01:02]} 26. Nxc4 {[%clk 0:01:40.7]} 26...
Bxc4 {[%clk 0:00:48.3]} 27. Rxc4 {[%clk 0:01:41.6]} 27... Rxa2 {[%clk 0:00:49]}
28. Bb4 {[%clk 0:01:32.4]} 28... Nb2 {[%clk 0:00:49.3]} 29. Rc8+ {[%clk
0:01:13.6]} 29... Kf7 {[%clk 0:00:49.5]} 30. Rc7+ {[%clk 0:00:54.3]} 30... Ke8
{[%clk 0:00:48.9]} 31. Bxd6 {[%clk 0:00:52.5]} 31... Nd3 {[%clk 0:00:48.2]} 32.
h4 {[%clk 0:00:51.8]} 32... Ne1 {[%clk 0:00:46.6]} 33. Rxh7 {[%clk 0:00:47.3]}
33... Nxg2 {[%clk 0:00:46.9]} 34. h5 {[%clk 0:00:46]} 34... Ne1 {[%clk 0:00:39]}
35. hxg6 {[%clk 0:00:40.4]} 35... Nxf3+ {[%clk 0:00:38.6]} 36. Kf1 {[%clk
0:00:40.6]} 36... Nd2+ {[%clk 0:00:38.7]} 37. Ke1 {[%clk 0:00:40.4]} 37... Nxe4
{[%clk 0:00:25.2]} 38. Re7+ {[%clk 0:00:37.9]} 1-0

[Event "*** Titled Tuesday Blitz"]
[Site "Chess.com"]
[Date "2021.03.02"]
[Round "5"]
[White "GregShahade"]
[Black "chigorin28"]
[Result "0-1"]
[WhiteElo "2634"]
[BlackElo "2503"]
[TimeControl "180+1"]
[EndTime "10:54:40 PST"]
[Termination "chigorin28 won on time"]

1. e4 {[%clk 0:03:00.9]} 1... c5 {[%clk 0:02:58.8]} 2. Nf3 {[%clk 0:03:01.1]}
2... d6 {[%clk 0:02:58.9]} 3. d4 {[%clk 0:03:01.4]} 3... cxd4 {[%clk 0:02:58.8]}
4. Nxd4 {[%clk 0:03:02.3]} 4... Nf6 {[%clk 0:02:58.3]} 5. Nc3 {[%clk 0:03:02.6]}
5... a6 {[%clk 0:02:58.1]} 6. Be3 {[%clk 0:03:02.4]} 6... e5 {[%clk 0:02:56.6]}
7. Nb3 {[%clk 0:03:02.4]} 7... Be7 {[%clk 0:02:56.4]} 8. f3 {[%clk 0:03:01.1]}
8... O-O {[%clk 0:02:56.4]} 9. Qd2 {[%clk 0:03:01.1]} 9... Be6 {[%clk
0:02:56.3]} 10. O-O-O {[%clk 0:02:56.5]} 10... b5 {[%clk 0:02:56.4]} 11. g4
{[%clk 0:02:54.7]} 11... Nc6 {[%clk 0:02:50.2]} 12. Nd5 {[%clk 0:02:37]} 12...
Re8 {[%clk 0:02:46.5]} 13. Bb6 {[%clk 0:02:19.8]} 13... Qc8 {[%clk 0:02:43.7]}
14. Nc7 {[%clk 0:02:11]} 14... Qb7 {[%clk 0:02:41.9]} 15. Nxa8 {[%clk
0:02:07.6]} 15... Rxa8 {[%clk 0:02:42]} 16. Be3 {[%clk 0:02:05.4]} 16... a5
{[%clk 0:02:39.7]} 17. Kb1 {[%clk 0:01:50.7]} 17... a4 {[%clk 0:02:37.6]} 18.
Nc1 {[%clk 0:01:51]} 18... a3 {[%clk 0:02:16.7]} 19. b3 {[%clk 0:01:49.1]} 19...
d5 {[%clk 0:02:07.8]} 20. g5 {[%clk 0:01:37.6]} 20... d4 {[%clk 0:02:02]} 21.
gxf6 {[%clk 0:01:23]} 21... dxe3 {[%clk 0:02:01.9]} 22. Qxe3 {[%clk 0:01:22.2]}
22... Bxf6 {[%clk 0:02:02.1]} 23. Nd3 {[%clk 0:01:21.7]} 23... Nd4 {[%clk
0:01:59.8]} 24. c3 {[%clk 0:01:12.5]} 24... Bxb3 {[%clk 0:01:50.4]} 25. axb3
{[%clk 0:00:54]} 25... a2+ {[%clk 0:01:47.1]} 26. Kb2 {[%clk 0:00:51.3]} 26...
a1=Q+ {[%clk 0:01:10]} 27. Rxa1 {[%clk 0:00:51.4]} 27... Rxa1 {[%clk 0:01:07.9]}
28. Bg2 {[%clk 0:00:42]} 28... Ra8 {[%clk 0:00:47.9]} 29. cxd4 {[%clk
0:00:22.4]} 29... Qa7 {[%clk 0:00:46.2]} 30. Rb1 {[%clk 0:00:16.5]} 30... Qa2+
{[%clk 0:00:43.3]} 31. Kc1 {[%clk 0:00:12.1]} 31... Rc8+ {[%clk 0:00:43.8]} 32.
Nc5 {[%clk 0:00:08.4]} 32... exd4 {[%clk 0:00:44.2]} 33. Qd3 {[%clk 0:00:03.9]}
33... Rxc5+ {[%clk 0:00:44.2]} 34. Kd1 {[%clk 0:00:04.4]} 34... Rc3 {[%clk
0:00:41.3]} 0-1

[Event "*** Titled Tuesday Blitz"]
[Site "Chess.com"]
[Date "2021.03.02"]
[Round "5"]
[White "RamyresCoelho"]
[Black "Kostukov_Alex"]
[Result "0-1"]
[WhiteElo "2054"]
[BlackElo "2326"]
[TimeControl "180+1"]
[EndTime "10:54:41 PST"]
[Termination "Kostukov_Alex won by checkmate"]

1. e4 {[%clk 0:03:00.9]} 1... c5 {[%clk 0:02:56.9]} 2. Nf3 {[%clk 0:03:00.1]}
2... g6 {[%clk 0:02:57.1]} 3. d4 {[%clk 0:02:59.1]} 3... cxd4 {[%clk 0:02:57]}
4. Nxd4 {[%clk 0:03:00]} 4... Bg7 {[%clk 0:02:57.1]} 5. Bc4 {[%clk 0:02:59]}
5... Nc6 {[%clk 0:02:52.4]} 6. Nxc6 {[%clk 0:02:58.1]} 6... bxc6 {[%clk
0:02:51.8]} 7. Qf3 {[%clk 0:02:56.7]} 7... Nf6 {[%clk 0:02:47.9]} 8. O-O {[%clk
0:02:51.6]} 8... d5 {[%clk 0:02:39.4]} 9. exd5 {[%clk 0:02:47.8]} 9... cxd5
{[%clk 0:02:39.5]} 10. Bb5+ {[%clk 0:02:46.9]} 10... Bd7 {[%clk 0:02:39.6]} 11.
Bxd7+ {[%clk 0:02:46.4]} 11... Qxd7 {[%clk 0:02:40.5]} 12. Nc3 {[%clk 0:02:39]}
12... O-O {[%clk 0:02:39.2]} 13. Rd1 {[%clk 0:02:34.4]} 13... Rfd8 {[%clk
0:02:26.8]} 14. Bg5 {[%clk 0:02:31.7]} 14... d4 {[%clk 0:02:20.3]} 15. Bxf6
{[%clk 0:02:27.9]} 15... Bxf6 {[%clk 0:02:17.9]} 16. Ne4 {[%clk 0:02:25.1]}
16... Bg7 {[%clk 0:02:18]} 17. Ng5 {[%clk 0:02:18.9]} 17... e5 {[%clk
0:02:10.9]} 18. Qh3 {[%clk 0:01:49.9]} 18... h6 {[%clk 0:02:02.7]} 19. Qxd7
{[%clk 0:01:48.8]} 19... Rxd7 {[%clk 0:02:03.3]} 20. Ne4 {[%clk 0:01:44.6]}
20... f5 {[%clk 0:02:03.2]} 21. Nc5 {[%clk 0:01:42.2]} 21... Rc7 {[%clk
0:01:58.8]} 22. b4 {[%clk 0:01:38.8]} 22... Bf8 {[%clk 0:01:55.8]} 23. f4 {[%clk
0:01:28.7]} 23... exf4 {[%clk 0:01:48.8]} 24. Rxd4 {[%clk 0:01:25.3]} 24... Rxc5
{[%clk 0:01:47.6]} 25. bxc5 {[%clk 0:01:26.2]} 25... Bxc5 {[%clk 0:01:46.6]} 26.
Rd1 {[%clk 0:01:24]} 26... Rd8 {[%clk 0:01:43.7]} 27. c3 {[%clk 0:01:23.7]}
27... Kf7 {[%clk 0:01:39.3]} 28. Kf1 {[%clk 0:01:21.9]} 28... Bxd4 {[%clk
0:01:38.8]} 29. cxd4 {[%clk 0:01:20.2]} 29... Ke6 {[%clk 0:01:35.9]} 30. Kf2
{[%clk 0:01:17.4]} 30... Kd5 {[%clk 0:01:34.7]} 31. Kf3 {[%clk 0:01:16.7]} 31...
g5 {[%clk 0:01:34.8]} 32. h4 {[%clk 0:01:13.5]} 32... Re8 {[%clk 0:01:34]} 33.
hxg5 {[%clk 0:01:10.9]} 33... hxg5 {[%clk 0:01:34.9]} 34. Rd3 {[%clk 0:01:07.9]}
34... Kc4 {[%clk 0:01:30.7]} 35. Ra3 {[%clk 0:00:57.9]} 35... Re7 {[%clk
0:01:15.6]} 36. Ra4+ {[%clk 0:00:49.9]} 36... Kd3 {[%clk 0:01:13.8]} 37. d5
{[%clk 0:00:46.6]} 37... Rd7 {[%clk 0:00:57.8]} 38. Ra5 {[%clk 0:00:42.3]} 38...
Kc4 {[%clk 0:00:52.5]} 39. d6 {[%clk 0:00:28.3]} 39... Rxd6 {[%clk 0:00:51.1]}
40. Rxf5 {[%clk 0:00:27.4]} 40... Rd3+ {[%clk 0:00:50.9]} 41. Ke4 {[%clk
0:00:24]} 41... Re3# {[%clk 0:00:49.7]} 0-1

[Event "*** Titled Tuesday Blitz"]
[Site "Chess.com"]
[Date "2021.03.02"]
[Round "5"]
[White "volkanyirik"]
[Black "MatyChess1"]
[Result "0-1"]
[WhiteElo "2403"]
[BlackElo "2587"]
[TimeControl "180+1"]
[EndTime "10:54:42 PST"]
[Termination "MatyChess1 won by checkmate"]

1. e4 {[%clk 0:03:00.9]} 1... c5 {[%clk 0:02:59.9]} 2. Nc3 {[%clk 0:03:01]} 2...
Nc6 {[%clk 0:02:59.5]} 3. f4 {[%clk 0:03:01.4]} 3... e6 {[%clk 0:02:58.8]} 4.
Bc4 {[%clk 0:03:01.6]} 4... Nf6 {[%clk 0:02:57.9]} 5. e5 {[%clk 0:03:00.5]} 5...
d5 {[%clk 0:02:58.5]} 6. exd6 {[%clk 0:03:01.4]} 6... Bxd6 {[%clk 0:02:56.6]} 7.
d3 {[%clk 0:03:01.8]} 7... a6 {[%clk 0:02:56.1]} 8. a4 {[%clk 0:03:01.6]} 8...
Qc7 {[%clk 0:02:56.5]} 9. Nge2 {[%clk 0:03:01]} 9... b6 {[%clk 0:02:56.5]} 10.
O-O {[%clk 0:03:00.8]} 10... Bb7 {[%clk 0:02:57.1]} 11. Ng3 {[%clk 0:03:00.5]}
11... Nd4 {[%clk 0:02:51.4]} 12. Nce4 {[%clk 0:03:00.8]} 12... Be7 {[%clk
0:02:47.3]} 13. c3 {[%clk 0:03:00.5]} 13... Nc6 {[%clk 0:02:42.5]} 14. f5 {[%clk
0:03:00.8]} 14... Nxe4 {[%clk 0:02:25.2]} 15. dxe4 {[%clk 0:02:53.2]} 15... Ne5
{[%clk 0:01:20.9]} 16. Bf4 {[%clk 0:02:40.7]} 16... g5 {[%clk 0:01:09.3]} 17.
Bxe5 {[%clk 0:02:38.6]} 17... Qxe5 {[%clk 0:01:07.5]} 18. fxe6 {[%clk
0:02:38.8]} 18... fxe6 {[%clk 0:00:45.3]} 19. Qh5+ {[%clk 0:02:36.7]} 19... Kd7
{[%clk 0:00:45.7]} 20. Rad1+ {[%clk 0:02:31.9]} 20... Kc7 {[%clk 0:00:43.1]} 21.
Rf7 {[%clk 0:02:27]} 21... Rae8 {[%clk 0:00:43.3]} 22. Qh6 {[%clk 0:02:11.3]}
22... Rhf8 {[%clk 0:00:13]} 23. Qxe6 {[%clk 0:01:59.1]} 23... Qxe6 {[%clk
0:00:10.5]} 24. Bxe6 {[%clk 0:02:00]} 24... Rxf7 {[%clk 0:00:09.8]} 25. Bxf7
{[%clk 0:02:00.9]} 25... Rf8 {[%clk 0:00:08.9]} 26. Be6 {[%clk 0:01:54.2]} 26...
Bd6 {[%clk 0:00:09.3]} 27. Nf5 {[%clk 0:01:53.4]} 27... Be5 {[%clk 0:00:08.2]}
28. Rd7+ {[%clk 0:01:52.3]} 28... Kb8 {[%clk 0:00:08.5]} 29. Nd6 {[%clk
0:01:31.4]} 29... Bc6 {[%clk 0:00:06.2]} 30. Rxh7 {[%clk 0:00:47.1]} 30... Bxd6
{[%clk 0:00:05.6]} 31. Bd5 {[%clk 0:00:44.6]} 31... Bxd5 {[%clk 0:00:03.3]} 32.
exd5 {[%clk 0:00:45.5]} 32... c4 {[%clk 0:00:04.2]} 33. Rd7 {[%clk 0:00:44.7]}
33... Bc5+ {[%clk 0:00:04]} 34. Kh1 {[%clk 0:00:45.2]} 34... Rf1# {[%clk
0:00:04.8]} 0-1